[Event "11th Arad Open 2018"]
[Site "Arad"]
[Date "2018.08.05"]
[Round "1"]
[White "Roubalik, Jakub"]
[Black "Martinenco, Sergiu"]
[Result "1-0"]
[ECO "D37"]
[WhiteElo "2402"]
[BlackElo "1857"]
[Annotator "NA"]
[PlyCount "81"]
[EventDate "2018.08.05"]
[EventType "swiss"]
[EventCountry "ROU"]
[SourceTitle "playchess.com"]
[Source "ChessBase"]
[SourceQuality "1"]
[TimeControl "40/5400+30:1800+30"]

1. d4 {[%emt 0:00:00]} Nf6 {[%emt 0:00:00]} 2. c4 {[%emt 0:00:00]} e6 {[%emt 0:00:00]} 3. Nf3 {[%emt 0:00:00]} d5 {[%emt 0:00:12]} 4. Nc3 {[%emt 0:00:00]} Be7 {[%emt 0:00:12]} 5. Bg5 {[%emt 0:00:18]} O-O {[%emt 0:00:25]} 6. Qc2 {[%emt 0:03:02]} b6 {[%emt 0:12:31]} 7. cxd5 {[%emt 0:06:41]} Nxd5 {[%emt 0:06:39]} 8. Bxe7 {[%emt 0:00:11]} Qxe7 {[%emt 0:02:26]} 9. Nxd5 {[%emt 0:04:28]} exd5 {[%emt 0:00:08]} 10. e3 {[%emt 0:00:05]} c5 {[%emt 0:09:21]} 11. Bd3 {[%emt 0:01:31]} g6 {[%emt 0:01:09]} 12. dxc5 {[%emt 0:06:33]} bxc5 {[%emt 0:01:23]} 13. O-O {[%emt 0:00:11]} Nd7 {[%emt 0:15:21]} 14. Rac1 {[%emt 0:06:11]} Bb7 {[%emt 0:01:08]} 15. Rfe1 {[%emt 0:06:23]} f5 {[%emt 0:06:01]} 16. Bb5 {[%emt 0:07:59]} Rac8 {[%emt 0:03:53]} 17. Qa4 {[%emt 0:06:44]} Nf6 {[%emt 0:13:48]} 18. Qxa7 {[%emt 0:15:22]} Ne4 {[%emt 0:00:44]} 19. Ba6 {[%emt 0:03:48]} Rc7 {[%emt 0:01:58]} 20. Bxb7 {[%emt 0:00:05]} Rxb7 {[%emt 0:00:13]} 21. Qa3 {[%emt 0:00:10]} Rfb8 {[%emt 0:09:26]} 22. b3 {[%emt 0:01:38]} Ra7 {[%emt 0:05:45]} 23. Qb2 {[%emt 0:00:13]} Rba8 {[%emt 0:02:01]} 24. Ra1 {[%emt 0:04:11]} Ra6 {[%emt 0:01:00]} 25. Red1 {[%emt 0:02:53]} Rd6 {[%emt 0:02:44]} 26. Qc2 {[%emt 0:16:02]} Qg7 {[%emt 0:02:39]} 27. Rac1 {[%emt 0:00:45]} Rad8 {[%emt 0:01:11]} 28. Nd2 {[%emt 0:01:15]} c4 {[%emt 0:01:06]} 29. Nxe4 {[%emt 0:02:14]} cxb3 {[%emt 0:00:23]} 30. Qxb3 {[%emt 0:00:13]} fxe4 {[%emt 0:00:06]} 31. Rd4 {[%emt 0:00:20]} Qd7 {[%emt 0:01:00]} 32. Rxe4 {[%emt 0:01:41]} Rb6 {[%emt 0:00:31]} 33. Qxb6 {[%emt 0:02:44]} dxe4 {[%emt 0:00:05]} 34. Qb3+ {[%emt 0:00:07]} Kg7 {[%emt 0:00:23]} 35. Qc3+ {[%emt 0:00:15]} Kh6 {[%emt 0:00:18]} 36. h3 {[%emt 0:00:33]} Qd3 {[%emt 0:01:15]} 37. Qf6 {[%emt 0:01:57]} Rd7 {[%emt 0:00:24]} 38. Qf8+ {[%emt 0:00:33]} Kh5 {[%emt 0:00:25]} 39. g4+ {[%emt 0:00:13]} Kg5 {[%emt 0:00:34]} 40. Qf4+ {[%emt 0:00:00]} Kh4 {[%emt 0:00:00]} 41. Qh6# {[%emt 0:15:15]} 1-0

[Event "11th Arad Open 2018"]
[Site "Arad"]
[Date "2018.08.05"]
[Round "1"]
[White "Macovei, Andrei"]
[Black "Pop, Laurentius Onyx"]
[Result "1-0"]
[ECO "C65"]
[WhiteElo "2394"]
[BlackElo "1852"]
[Annotator "NA"]
[PlyCount "71"]
[EventDate "2018.08.05"]
[EventType "swiss"]
[EventCountry "ROU"]
[SourceTitle "playchess.com"]
[Source "ChessBase"]
[SourceQuality "1"]
[TimeControl "40/5400+30:1800+30"]

1. e4 {[%emt 0:00:00]} e5 {[%emt 0:00:02]} 2. Nf3 {[%emt 0:00:05]} Nc6 {[%emt 0:00:23]} 3. Bb5 {[%emt 0:00:05]} Nf6 {[%emt 0:00:28]} 4. d3 {[%emt 0:01:05]} Bc5 {[%emt 0:00:29]} 5. c3 {[%emt 0:00:06]} d6 {[%emt 0:05:17]} 6. O-O {[%emt 0:00:27]} O-O {[%emt 0:02:28]} 7. Nbd2 {[%emt 0:00:07]} Bd7 {[%emt 0:06:33]} 8. h3 {[%emt 0:09:42]} Bb6 {[%emt 0:14:43]} 9. Re1 {[%emt 0:06:29]} Ne7 {[%emt 0:11:29]} 10. Bc4 {[%emt 0:06:23]} c6 {[%emt 0:04:27]} 11. Nf1 {[%emt 0:09:04]} Ng6 {[%emt 0:04:04]} 12. Bb3 {[%emt 0:04:41]} h6 {[%emt 0:05:11]} 13. Ng3 {[%emt 0:01:21]} Re8 {[%emt 0:01:49]} 14. d4 {[%emt 0:02:17]} Qc7 {[%emt 0:10:14]} 15. Be3 {[%emt 0:06:52]} Be6 {[%emt 0:09:53]} 16. Bc2 {[%emt 0:06:18]} Rad8 {[%emt 0:02:29]} 17. Qc1 {[%emt 0:10:26]} Kh7 {[%emt 0:05:40]} 18. a4 {[%emt 0:03:38]} a5 {[%emt 0:01:30]} 19. Nf5 {[%emt 0:02:24]} Bxf5 {[%emt 0:02:12]} 20. exf5 {[%emt 0:00:02]} Nf8 {[%emt 0:00:56]} 21. dxe5 {[%emt 0:01:18]} Bxe3 {[%emt 0:00:06]} 22. Qxe3 {[%emt 0:00:23]} dxe5 {[%emt 0:01:19]} 23. Nxe5 {[%emt 0:00:36]} Rd5 {[%emt 0:01:33]} 24. f4 {[%emt 0:00:20]} N8d7 {[%emt 0:01:07]} 25. c4 {[%emt 0:02:12]} Rc5 {[%emt 0:00:57]} 26. Qf2 {[%emt 0:00:37]} b6 {[%emt 0:03:02]} 27. Nxf7 {[%emt 0:01:04]} Rxe1+ {[%emt 0:00:31]} 28. Rxe1 {[%emt 0:00:02]} Rxc4 {[%emt 0:00:01]} 29. Ne5 {[%emt 0:01:28]} Rb4 {[%emt 0:01:02]} 30. Qg3 {[%emt 0:03:54]} Nf8 {[%emt 0:00:52]} 31. Ng6 {[%emt 0:02:10]} Nxg6 {[%emt 0:01:08]} 32. Qxg6+ {[%emt 0:00:12]} Kh8 {[%emt 0:00:03]} 33. Re8+ {[%emt 0:00:25]} Nxe8 {[%emt 0:01:27]} 34. Qxe8+ {[%emt 0:00:09]} Kh7 {[%emt 0:00:01]} 35. f6+ {[%emt 0:00:05]} g6 {[%emt 0:00:07]} 36. Bxg6# {[%emt 0:00:33]} 1-0

[Event "11th Arad Open 2018"]
[Site "Arad"]
[Date "2018.08.05"]
[Round "1"]
[White "Soltanici, Ruslan"]
[Black "Baibarac, Niculae"]
[Result "1-0"]
[ECO "C78"]
[WhiteElo "2383"]
[BlackElo "1836"]
[Annotator "NA"]
[PlyCount "95"]
[EventDate "2018.08.05"]
[EventType "swiss"]
[EventCountry "ROU"]
[SourceTitle "playchess.com"]
[Source "ChessBase"]
[SourceQuality "1"]
[TimeControl "40/5400+30:1800+30"]

1. e4 {[%emt 0:00:00]} e5 {[%emt 0:02:14]} 2. Nf3 {[%emt 0:00:00]} Nc6 {[%emt 0:00:45]} 3. Bb5 {[%emt 0:00:02]} a6 {[%emt 0:00:45]} 4. Ba4 {[%emt 0:00:13]} Nf6 {[%emt 0:02:16]} 5. O-O {[%emt 0:00:39]} b5 {[%emt 0:00:49]} 6. Bb3 {[%emt 0:00:12]} d6 {[%emt 0:01:24]} 7. c3 {[%emt 0:02:36]} Be7 {[%emt 0:00:53]} 8. d4 {[%emt 0:02:26]} Bg4 {[%emt 0:00:14]} 9. Be3 {[%emt 0:00:23]} Na5 {[%emt 0:00:28]} 10. Bc2 {[%emt 0:00:15]} Nc4 {[%emt 0:00:10]} 11. Bc1 {[%emt 0:00:15]} O-O {[%emt 0:01:38]} 12. b3 {[%emt 0:02:07]} Nb6 {[%emt 0:00:26]} 13. dxe5 {[%emt 0:03:51]} Bxf3 {[%emt 0:00:22]} 14. Qxf3 {[%emt 0:00:09]} dxe5 {[%emt 0:00:21]} 15. Rd1 {[%emt 0:03:30]} Qc8 {[%emt 0:00:39]} 16. Nd2 {[%emt 0:02:42]} c5 {[%emt 0:03:36]} 17. Nf1 {[%emt 0:02:11]} Rd8 {[%emt 0:10:20]} 18. Rxd8+ {[%emt 0:06:47]} Qxd8 {[%emt 0:01:44]} 19. Ne3 {[%emt 0:05:24]} g6 {[%emt 0:00:42]} 20. a4 {[%emt 0:00:55]} Qc7 {[%emt 0:07:29]} 21. Qe2 {[%emt 0:12:17]} Qc6 {[%emt 0:04:11]} 22. c4 {[%emt 0:15:31]} b4 {[%emt 0:03:00]} 23. Bb2 {[%emt 0:08:16]} Nbd7 {[%emt 0:00:19]} 24. Rd1 {[%emt 0:02:01]} Qe6 {[%emt 0:03:35]} 25. g3 {[%emt 0:02:39]} Rd8 {[%emt 0:07:13]} 26. Kg2 {[%emt 0:05:46]} Nb8 {[%emt 0:00:49]} 27. Nd5 {[%emt 0:02:45]} Nc6 {[%emt 0:02:50]} 28. f4 {[%emt 0:01:24]} Nd4 {[%emt 0:01:43]} 29. Bxd4 {[%emt 0:00:33]} exd4 {[%emt 0:00:34]} 30. Qf3 {[%emt 0:06:00]} Kg7 {[%emt 0:03:31]} 31. Bd3 {[%emt 0:05:35]} Bf8 {[%emt 0:08:22]} 32. e5 {[%emt 0:01:09]} Nxd5 {[%emt 0:11:59]} 33. cxd5 {[%emt 0:00:05]} Qxd5 {[%emt 0:00:10]} 34. Qxd5 {[%emt 0:00:25]} Rxd5 {[%emt 0:00:18]} 35. Bxa6 {[%emt 0:00:10]} Rd7 {[%emt 0:02:21]} 36. Bc4 {[%emt 0:03:45]} Ra7 {[%emt 0:00:26]} 37. Kf3 {[%emt 0:01:50]} Be7 {[%emt 0:05:46]} 38. Ke4 {[%emt 0:00:28]} f5+ {[%emt 0:01:49]} 39. exf6+ {[%emt 0:02:34]} Kxf6 {[%emt 0:02:35]} 40. Kd5 {[%emt 0:00:00]} Bf8 {[%emt 0:00:00]} 41. Kc6 {[%emt 0:15:26]} Be7 {[%emt 0:24:18]} 42. Re1 {[%emt 0:03:43]} Ra5 {[%emt 0:03:21]} 43. Kb7 {[%emt 0:01:00]} Bf8 {[%emt 0:09:23]} 44. Re8 {[%emt 0:00:14]} Be7 {[%emt 0:02:32]} 45. Kb6 {[%emt 0:00:09]} Rxa4 {[%emt 0:00:22]} 46. bxa4 {[%emt 0:00:12]} b3 {[%emt 0:00:30]} 47. Bxb3 {[%emt 0:00:08]} d3 {[%emt 0:00:16]} 48. Rxe7 {[%emt 0:00:05]} 1-0

[Event "11th Arad Open 2018"]
[Site "Arad"]
[Date "2018.08.05"]
[Round "1"]
[White "Peptan, Corina Isabela"]
[Black "Brosman, Alexandru"]
[Result "1-0"]
[ECO "E12"]
[WhiteElo "2380"]
[BlackElo "1826"]
[Annotator "NA"]
[PlyCount "73"]
[EventDate "2018.08.05"]
[EventType "swiss"]
[EventCountry "ROU"]
[SourceTitle "playchess.com"]
[Source "ChessBase"]
[SourceQuality "1"]
[TimeControl "40/5400+30:1800+30"]

1. d4 {[%emt 0:00:00]} Nf6 {[%emt 0:00:00]} 2. c4 {[%emt 0:00:00]} e6 {[%emt 0:00:00]} 3. Nf3 {[%emt 0:00:00]} b6 {[%emt 0:00:07]} 4. a3 {[%emt 0:00:42]} Bb7 {[%emt 0:00:21]} 5. Nc3 {[%emt 0:00:08]} d5 {[%emt 0:00:43]} 6. Bg5 {[%emt 0:01:40]} Be7 {[%emt 0:00:26]} 7. e3 {[%emt 0:00:12]} O-O {[%emt 0:00:14]} 8. Rc1 {[%emt 0:01:45]} h6 {[%emt 0:02:04]} 9. Bxf6 {[%emt 0:07:19]} Bxf6 {[%emt 0:00:06]} 10. cxd5 {[%emt 0:00:07]} exd5 {[%emt 0:00:10]} 11. Be2 {[%emt 0:00:33]} c6 {[%emt 0:02:16]} 12. O-O {[%emt 0:01:41]} Re8 {[%emt 0:01:40]} 13. Qc2 {[%emt 0:02:44]} Qe7 {[%emt 0:02:53]} 14. Rfd1 {[%emt 0:03:08]} b5 {[%emt 0:02:42]} 15. Bd3 {[%emt 0:06:49]} g5 {[%emt 0:05:22]} 16. Ne2 {[%emt 0:07:02]} Nd7 {[%emt 0:01:25]} 17. Ng3 {[%emt 0:00:07]} Bg7 {[%emt 0:05:15]} 18. Nf5 {[%emt 0:01:31]} Qf6 {[%emt 0:00:48]} 19. e4 {[%emt 0:02:11]} dxe4 {[%emt 0:00:41]} 20. Bxe4 {[%emt 0:00:01]} Rac8 {[%emt 0:02:29]} 21. Nxg7 {[%emt 0:05:30]} Kxg7 {[%emt 0:00:43]} 22. h3 {[%emt 0:00:13]} Nf8 {[%emt 0:05:18]} 23. Ne5 {[%emt 0:02:01]} Rc7 {[%emt 0:02:45]} 24. Bf3 {[%emt 0:05:40]} Ne6 {[%emt 0:02:37]} 25. Ng4 {[%emt 0:00:21]} Qf4 {[%emt 0:01:34]} 26. Qc3 {[%emt 0:03:15]} f6 27. g3 Qf5 {[%emt 0:05:39]} 28. Bg2 {[%emt 0:09:05]} Qg6 {[%emt 0:11:56]} 29. d5 {[%emt 0:02:10]} cxd5 {[%emt 0:01:02]} 30. Qxc7+ {[%emt 0:00:06]} Nxc7 {[%emt 0:02:12]} 31. Rxc7+ {[%emt 0:00:02]} Kh8 {[%emt 0:00:31]} 32. Rxb7 {[%emt 0:00:02]} Rd8 {[%emt 0:04:39]} 33. Rxd5 {[%emt 0:02:16]} Rxd5 {[%emt 0:02:03]} 34. Bxd5 {[%emt 0:00:08]} f5 {[%emt 0:02:53]} 35. Ne5 {[%emt 0:01:59]} Qh5 {[%emt 0:04:51]} 36. Kg2 {[%emt 0:02:49]} Qd1 {[%emt 0:03:34]} 37. Ng6# {[%emt 0:00:13]} 1-0

[Event "11th Arad Open 2018"]
[Site "Arad"]
[Date "2018.08.05"]
[Round "1"]
[White "Farkas, Gabor"]
[Black "Badelita, Beniamin"]
[Result "1-0"]
[ECO "B42"]
[WhiteElo "2366"]
[BlackElo "1817"]
[Annotator "NA"]
[PlyCount "82"]
[EventDate "2018.08.05"]
[EventType "swiss"]
[EventCountry "ROU"]
[SourceTitle "playchess.com"]
[Source "ChessBase"]
[SourceQuality "1"]
[TimeControl "40/5400+30:1800+30"]

1. e4 {[%emt 0:00:00]} c5 {[%emt 0:00:41]} 2. Nf3 {[%emt 0:00:00]} e6 {[%emt 0:03:09]} 3. d4 {[%emt 0:00:14]} cxd4 {[%emt 0:00:33]} 4. Nxd4 {[%emt 0:00:08]} a6 {[%emt 0:00:27]} 5. Bd3 {[%emt 0:01:30]} Qc7 {[%emt 0:00:47]} 6. Nc3 {[%emt 0:04:58]} Nf6 {[%emt 0:02:29]} 7. Qe2 {[%emt 0:05:17]} Bc5 {[%emt 0:05:12]} 8. Nb3 {[%emt 0:01:21]} Bb4 {[%emt 0:04:44]} 9. O-O {[%emt 0:05:29]} Nc6 {[%emt 0:10:54]} 10. f4 {[%emt 0:03:15]} b5 {[%emt 0:16:24]} 11. e5 {[%emt 0:08:15]} Bxc3 {[%emt 0:07:05]} 12. bxc3 {[%emt 0:00:58]} Nd5 {[%emt 0:01:36]} 13. c4 {[%emt 0:08:55]} bxc4 14. Bxc4 {[%emt 0:00:20]} Nce7 {[%emt 0:11:25]} 15. Ba3 {[%emt 0:04:48]} Bb7 {[%emt 0:09:11]} 16. Bd3 {[%emt 0:00:48]} Nc3 {[%emt 0:04:44]} 17. Qg4 {[%emt 0:08:15]} h5 {[%emt 0:04:46]} 18. Qg5 {[%emt 0:01:05]} Ncd5 {[%emt 0:01:30]} 19. c4 {[%emt 0:06:51]} f6 {[%emt 0:03:16]} 20. Qg3 {[%emt 0:00:38]} h4 {[%emt 0:01:34]} 21. Qf2 {[%emt 0:02:11]} Nc3 {[%emt 0:01:39]} 22. Bd6 {[%emt 0:01:40]} Qd8 {[%emt 0:02:26]} 23. Nc5 {[%emt 0:01:48]} Bc6 {[%emt 0:01:06]} 24. Qc2 {[%emt 0:00:14]} Qa5 {[%emt 0:01:00]} 25. Nb3 {[%emt 0:02:54]} Qb6+ {[%emt 0:00:40]} 26. Bc5 {[%emt 0:00:10]} Qb7 {[%emt 0:00:28]} 27. Na5 {[%emt 0:03:54]} Qc7 {[%emt 0:00:53]} 28. Nxc6 {[%emt 0:00:28]} Qxc6 {[%emt 0:00:55]} 29. Bd4 {[%emt 0:03:01]} f5 {[%emt 0:04:07]} 30. Bxc3 {[%emt 0:01:08]} h3 {[%emt 0:00:07]} 31. Qf2 {[%emt 0:00:49]} Ng6 {[%emt 0:00:19]} 32. g3 {[%emt 0:03:13]} Kf7 {[%emt 0:00:16]} 33. Be2 {[%emt 0:00:38]} Rac8 {[%emt 0:00:21]} 34. Rad1 {[%emt 0:00:32]} Rh6 {[%emt 0:00:05]} 35. Rd4 {[%emt 0:02:19]} Nh4 {[%emt 0:00:43]} 36. Bf3 {[%emt 0:00:20]} Qa4 {[%emt 0:00:15]} 37. gxh4 {[%emt 0:00:58]} Rxc4 {[%emt 0:01:30]} 38. h5 {[%emt 0:00:49]} g6 {[%emt 0:00:48]} 39. Rxc4 {[%emt 0:00:22]} Qxc4 {[%emt 0:00:11]} 40. Qd4 {[%emt 0:00:00]} Qb5 {[%emt 0:00:00]} 41. a4 {[%emt 0:15:42]} a5 1-0

[Event "11th Arad Open 2018"]
[Site "Arad"]
[Date "2018.08.05"]
[Round "1"]
[White "Balog, Imre"]
[Black "Ursente, Tudor Alexandru"]
[Result "1-0"]
[ECO "B40"]
[WhiteElo "1895"]
[BlackElo "1918"]
[Annotator "NA"]
[PlyCount "43"]
[EventDate "2018.08.05"]
[EventType "swiss"]
[EventCountry "ROU"]
[SourceTitle "playchess.com"]
[Source "ChessBase"]
[SourceQuality "1"]
[TimeControl "40/5400+30:1800+30"]

1. e4 {[%emt 0:00:00]} c5 {[%emt 0:00:00]} 2. Nf3 {[%emt 0:00:04]} e6 {[%emt 0:00:00]} 3. b3 {[%emt 0:00:23]} d6 {[%emt 0:00:29]} 4. Bb2 {[%emt 0:00:26]} Nc6 {[%emt 0:00:40]} 5. Bb5 {[%emt 0:01:15]} Bd7 {[%emt 0:00:38]} 6. O-O {[%emt 0:00:46]} Nf6 {[%emt 0:00:05]} 7. Re1 {[%emt 0:00:17]} Be7 {[%emt 0:00:12]} 8. c3 {[%emt 0:00:36]} a6 {[%emt 0:04:10]} 9. Bf1 {[%emt 0:00:21]} O-O {[%emt 0:00:06]} 10. d4 {[%emt 0:00:27]} cxd4 {[%emt 0:00:06]} 11. cxd4 {[%emt 0:00:19]} Rc8 {[%emt 0:00:10]} 12. Nc3 {[%emt 0:00:27]} d5 {[%emt 0:15:59]} 13. e5 {[%emt 0:00:19]} Ne8 {[%emt 0:00:04]} 14. Bd3 {[%emt 0:01:25]} b5 {[%emt 0:08:58]} 15. Qd2 {[%emt 0:01:12]} Qb6 {[%emt 0:07:33]} 16. Rad1 {[%emt 0:00:45]} Na5 {[%emt 0:10:03]} 17. Qf4 {[%emt 0:03:14]} b4 {[%emt 0:00:50]} 18. Ne2 {[%emt 0:00:33]} Bb5 {[%emt 0:04:34]} 19. Bb1 {[%emt 0:00:19]} Nc6 {[%emt 0:00:53]} 20. Ng3 {[%emt 0:00:35]} a5 {[%emt 0:02:54]} 21. Nf5 {[%emt 0:02:45]} Qd8 {[%emt 0:04:17]} 22. Nh6+ {[%emt 0:05:07]} 1-0

[Event "11th Arad Open 2018"]
[Site "Arad"]
[Date "2018.08.05"]
[Round "1"]
[White "Dinca, Ovidiu"]
[Black "Secheres, Adrian Simion"]
[Result "0-1"]
[ECO "A48"]
[WhiteElo "1857"]
[BlackElo "2407"]
[Annotator "NA"]
[PlyCount "68"]
[EventDate "2018.08.05"]
[EventType "swiss"]
[EventCountry "ROU"]
[SourceTitle "playchess.com"]
[Source "ChessBase"]
[SourceQuality "1"]
[TimeControl "40/5400+30:1800+30"]

1. d4 {[%emt 0:00:00]} Nf6 {[%emt 0:00:00]} 2. Nf3 {[%emt 0:00:22]} g6 {[%emt 0:00:10]} 3. Bf4 {[%emt 0:00:41]} Bg7 {[%emt 0:00:17]} 4. h3 {[%emt 0:00:05]} O-O {[%emt 0:00:18]} 5. e3 {[%emt 0:00:08]} d6 {[%emt 0:00:24]} 6. Be2 {[%emt 0:00:19]} c5 {[%emt 0:01:11]} 7. c3 {[%emt 0:01:18]} b6 {[%emt 0:02:16]} 8. O-O {[%emt 0:00:36]} Bb7 {[%emt 0:00:04]} 9. Nbd2 {[%emt 0:00:15]} Nbd7 {[%emt 0:00:37]} 10. Bh2 {[%emt 0:00:10]} a6 {[%emt 0:03:39]} 11. a4 {[%emt 0:01:38]} Ra7 {[%emt 0:00:09]} 12. Re1 {[%emt 0:01:42]} Qa8 {[%emt 0:00:10]} 13. Bf1 {[%emt 0:00:33]} Re8 {[%emt 0:06:17]} 14. Nc4 {[%emt 0:03:43]} Bc6 {[%emt 0:05:44]} 15. Nfd2 {[%emt 0:19:41]} cxd4 {[%emt 0:19:43]} 16. exd4 {[%emt 0:00:34]} b5 {[%emt 0:04:18]} 17. axb5 {[%emt 0:04:29]} axb5 {[%emt 0:00:31]} 18. Ne3 {[%emt 0:03:33]} Nb6 {[%emt 0:01:22]} 19. Rxa7 {[%emt 0:03:08]} Qxa7 {[%emt 0:00:01]} 20. b3 {[%emt 0:10:19]} Nbd5 {[%emt 0:06:51]} 21. Qc2 {[%emt 0:09:59]} Nxe3 {[%emt 0:08:05]} 22. fxe3 {[%emt 0:00:35]} e5 {[%emt 0:04:45]} 23. Qc1 {[%emt 0:19:55]} Bh6 {[%emt 0:02:21]} 24. Kh1 {[%emt 0:05:17]} exd4 {[%emt 0:03:56]} 25. exd4 {[%emt 0:00:29]} Qa2 {[%emt 0:00:34]} 26. Rd1 {[%emt 0:00:42]} Ne4 {[%emt 0:01:47]} 27. Nxe4 {[%emt 0:02:56]} Bxc1 {[%emt 0:00:05]} 28. Nf6+ {[%emt 0:00:08]} Kh8 {[%emt 0:00:08]} 29. Nxe8 {[%emt 0:00:09]} Qc2 {[%emt 0:01:31]} 30. Re1 {[%emt 0:01:21]} Bd2 {[%emt 0:00:26]} 31. Re7 {[%emt 0:06:43]} Qc1 {[%emt 0:01:15]} 32. Rxf7 {[%emt 0:02:49]} Bxe8 {[%emt 0:00:11]} 33. Rf8+ {[%emt 0:00:25]} Kg7 {[%emt 0:00:02]} 34. Bxd6 {[%emt 0:00:06]} Bf7 {[%emt 0:00:26]} 0-1

[Event "11th Arad Open 2018"]
[Site "Arad"]
[Date "2018.08.05"]
[Round "1"]
[White "Bartha, Andrei"]
[Black "Abramovic, Bosko"]
[Result "0-1"]
[ECO "B28"]
[WhiteElo "1854"]
[BlackElo "2400"]
[Annotator "NA"]
[PlyCount "66"]
[EventDate "2018.08.05"]
[EventType "swiss"]
[EventCountry "ROU"]
[SourceTitle "playchess.com"]
[Source "ChessBase"]
[SourceQuality "1"]
[TimeControl "40/5400+30:1800+30"]

1. e4 {[%emt 0:00:00]} c5 {[%emt 0:00:00]} 2. Nf3 {[%emt 0:00:00]} a6 {[%emt 0:00:00]} 3. d4 {[%emt 0:00:09]} cxd4 {[%emt 0:00:00]} 4. Nxd4 {[%emt 0:00:09]} e5 {[%emt 0:00:00]} 5. Nf3 {[%emt 0:00:53]} Nc6 {[%emt 0:00:48]} 6. Nc3 {[%emt 0:00:47]} Bb4 {[%emt 0:00:20]} 7. Bc4 {[%emt 0:02:11]} Nf6 {[%emt 0:00:34]} 8. O-O {[%emt 0:00:46]} d6 {[%emt 0:00:13]} 9. Nd5 {[%emt 0:08:11]} Nxd5 {[%emt 0:00:27]} 10. Bxd5 {[%emt 0:00:50]} O-O {[%emt 0:04:30]} 11. c3 {[%emt 0:02:51]} Bc5 {[%emt 0:00:18]} 12. Bg5 {[%emt 0:03:30]} Qc7 {[%emt 0:00:41]} 13. b4 {[%emt 0:01:24]} Ba7 {[%emt 0:00:07]} 14. h3 {[%emt 0:03:09]} Ne7 {[%emt 0:00:19]} 15. Bxe7 {[%emt 0:01:30]} Qxe7 {[%emt 0:00:05]} 16. Qd2 {[%emt 0:01:54]} h6 {[%emt 0:04:49]} 17. Rfd1 {[%emt 0:01:31]} Kh8 {[%emt 0:01:28]} 18. Qd3 {[%emt 0:02:48]} f5 {[%emt 0:00:50]} 19. Rd2 {[%emt 0:05:28]} g5 {[%emt 0:03:43]} 20. exf5 {[%emt 0:01:26]} Bxf5 {[%emt 0:00:46]} 21. Be4 {[%emt 0:00:35]} Bxe4 {[%emt 0:00:34]} 22. Qxe4 {[%emt 0:00:20]} Rf4 {[%emt 0:02:33]} 23. Qd5 {[%emt 0:01:11]} Rf6 {[%emt 0:00:09]} 24. Nh2 {[%emt 0:04:45]} h5 {[%emt 0:01:26]} 25. Re1 {[%emt 0:03:39]} Raf8 {[%emt 0:02:41]} 26. Ree2 {[%emt 0:00:40]} Qh7 {[%emt 0:06:06]} 27. Nf1 {[%emt 0:01:25]} g4 {[%emt 0:00:14]} 28. hxg4 {[%emt 0:00:14]} hxg4 {[%emt 0:00:05]} 29. Ng3 {[%emt 0:06:42]} Qh4 {[%emt 0:05:34]} 30. Qd3 {[%emt 0:06:50]} Rh6 {[%emt 0:04:28]} 31. Re1 {[%emt 0:02:49]} e4 {[%emt 0:04:15]} 32. Rxe4 {[%emt 0:02:34]} Qh2+ {[%emt 0:00:22]} 33. Kf1 {[%emt 0:00:04]} Qh1+ {[%emt 0:00:06]} 0-1